{"text_format":"1","workbook":"xlsx","n_sheets":2,"sheets":["Feuille de Match","Joueurs"],"not_rendered":{"charts":0,"images":1,"macros":1,"external_links":0,"defined_names":67,"comments":0,"pivot_tables":0},"unopened":[],"bounds":{"document_bytes":16777216,"sheet_cells":100000,"rows_first":2000,"rows_last":500,"rows_between":2000,"halvings":0,"cell_chars":16384,"cell_head_chars":4096},"cells_cut":0,"cells_raw":0,"read":"whole","date_system":"1900"}

{"sheet":"Feuille de Match","index":0,"n_rows":73,"n_cols":35,"rows_kept":73,"cut":false,"hidden":false,"merged":[[14,31,15,31],[14,32,15,32],[14,33,15,33],[14,34,15,34],[8,31,8,34],[9,28,9,29],[10,28,11,28],[12,31,13,31],[12,32,13,32],[12,33,13,33],[12,34,13,34],[9,31,9,32],[9,33,9,34],[10,31,11,31],[10,32,11,32],[10,33,11,33],[10,34,11,34],[10,29,11,29],[12,28,13,28],[12,29,13,29],[14,28,15,28],[14,29,15,29],[10,27,11,27],[14,27,15,27],[21,1,22,1],[14,2,15,2],[10,2,11,2],[8,3,8,9],[21,6,21,7],[16,1,16,3],[14,4,15,4],[12,4,13,4],[8,26,8,29],[19,3,19,8],[9,26,9,27],[10,0,11,0],[12,0,13,0],[14,0,15,0],[12,2,13,2],[10,26,11,26],[10,19,11,19],[12,19,13,19],[14,19,15,19],[14,11,15,11],[10,6,11,6],[14,5,15,5],[12,7,13,7],[14,26,15,26],[12,26,13,26],[2,11,2,16],[0,4,6,9],[0,11,0,16],[4,11,4,16],[10,16,11,16],[10,11,11,11],[6,12,6,17],[10,14,11,14],[10,13,11,13],[10,4,11,4],[10,5,11,5],[10,7,11,7],[8,12,8,18],[10,18,11,18],[12,18,13,18],[14,18,15,18],[10,8,11,8],[12,16,13,16],[10,9,11,9],[12,9,13,9],[14,9,15,9],[12,13,13,13],[14,15,15,15],[14,13,15,13],[14,14,15,14],[14,17,15,17],[10,15,11,15],[27,3,27,7],[12,14,13,14],[12,8,13,8],[36,5,36,10],[35,5,35,10],[12,6,13,6],[14,8,15,8],[14,7,15,7],[31,12,31,16],[22,15,22,16],[19,12,19,17],[16,10,16,12],[12,11,13,11],[27,12,27,16],[12,15,13,15],[21,15,21,16],[10,17,11,17],[12,17,13,17],[14,16,15,16],[30,27,32,29],[67,26,67,29],[39,27,40,29],[47,27,48,29],[54,27,55,29],[60,26,60,29],[33,1,33,16],[32,12,32,16],[12,5,13,5],[14,6,15,6],[27,19,28,19],[12,27,13,27],[37,5,37,10]]}
[null,"COMITE DEPARTEMENTAL 62",null,null,"L'activation des macros est indispensable pour Continuez !!!",null,null,null,null,null,null,"Matches par équipes 62",null,null,null,null,null,null,null,null,"2021-2022",{"$f":"IF(Division=7,\"50\",\"\")","v":""}]
[null,null,null,null,null,null,null,null,null,null,null,null,null,null,null,null,null,null,null,null,"Plafond de la",null,null,null,null,null,null,null,"Choix de la"]
[null,{"$f":"IF($C$3<>\"\",VLOOKUP($C$3,$AC$4:$AD$7,2,FALSE),\"\")","v":""},null,null,null,null,null,null,null,null,null,{"$f":"\"Saison\"& \" \" &U1","v":"Saison 2021-2022"},null,null,null,null,null,null,null,null,"Division",null,null,null,null,null,null,null,"Division"]
[null,null,null,null,null,null,null,null,null,null,null,null,null,null,null,null,null,null,null,null,{"$f":"IF(C3=\"\",\"\",IF(C3=1,2000,IF(C3=2,1200,IF(C3=6,700,IF(C3=7,400)))))","v":""},null,null,null,null,null,null,{"$f":"'Feuille de Match'!AC4:AC7","v":1},1,"Triathlon"]
[null,null,null,null,null,null,null,null,null,null,null,{"$f":"IF(OR(D9=\"\"),\"\",VLOOKUP($D9,$B$39:$C$55,2,FALSE))","v":""},null,null,null,null,null,null,null,null,null,null,null,null,null,null,null,null,2,"Triathlon"]
[null,null,null,null,null,null,null,null,null,null,null,null,null,null,null,null,null,null,null,null,null,null,null,null,null,null,null,null,6,"Division"]
[null,null,null,null,null,null,null,null,null,null,"Date :",null,null,null,null,null,null,null,null,null,null,null,null,null,null,null,null,null,7,"Division"]
[]
[null,"CLUB RECEVEUR :",null,null,null,null,null,null,null,null,"CLUB VISITEUR :",null,null,null,null,null,null,null,null,null,null,null,null,null,null,null,"Division 1 et 2",null,null,null,null,"Division 6 et 7"]
[null,"NOM   PRENOM\nN° Licence","Mode de\nJeu","Catégorie\nDistance","Points réalisés","Rep.","M. G.","Série","%","Tot","NOM   PRENOM\nN° Licence",{"$f":"C10","v":"Mode de\nJeu"},"Catégorie\nDistance","Points réalisés","Rep.","M. G.","Série","%","Tot",null,null,null,null,null,null,null,"CLUB VISITE",null,"CLUB VISITEUR",null,null,"CLUB VISITE",null,"CLUB VISITEUR"]
[null,null,{"$f":"IF($C$3<>\"\",VLOOKUP($C$3,$AA$63:$AD$66,2,FALSE),\"\")","v":""},null,null,null,{"$f":"IF(F11=\"\",\"\",E11/F11)","v":""},null,{"$f":"IF(E11=0,\"\",E11/(LEFT(D12,3)))","v":""},{"$f":"IF(I11=\"\",\"\",IF(I11>R11,3,IF(I11=R11,2,1)))","v":""},null,{"$f":"IF($C$3<>\"\",VLOOKUP($C$3,$AA$63:$AD$66,2,FALSE),\"\")","v":""},null,null,{"$f":"IF(F11=\"\",\"\",F11)","v":""},{"$f":"IF(O11=\"\",\"\",N11/O11)","v":""},null,{"$f":"IF(N11=0,\"\",N11/(LEFT(M12,3)))","v":""},{"$f":"IF(R11=\"\",\"\",IF(R11>I11,3,IF(R11=I11,2,1)))","v":""},null,null,null,null,null,null,null,"Libre",{"$f":"IF($D11<>\"\",VLOOKUP($D11,$AA$24:$AD$30,2,FALSE),\"\")","v":""},"Libre",{"$f":"IF($M11<>\"\",VLOOKUP($M11,$AA$24:$AD$30,2,FALSE),\"\")","v":""},null,"Libre",{"$f":"IF($D11<>\"\",VLOOKUP($D11,$AA$24:$AB$30,2,FALSE),\"\")","v":""},"Libre",{"$f":"IF($M11<>\"\",VLOOKUP($M11,$AA$24:$AD$30,2,FALSE),\"\")","v":""}]
[null,{"$f":"IF($B11<>\"\",VLOOKUP($B11,Joueurs!$B$3:$F$496,4,FALSE),\"\")","v":""},null,{"$f":"IF($C$3<>\"\",VLOOKUP($C$3,$AA$70:$AD$73,2,FALSE),\"\")","v":""},null,null,null,null,null,null,{"$f":"IF($K11<>\"\",VLOOKUP($K11,Joueurs!$B$3:$F$496,4,FALSE),\"\")","v":""},null,{"$f":"IF($C$3<>\"\",VLOOKUP($C$3,$AA$70:$AD$73,2,FALSE),\"\")","v":""}]
[null,null,{"$f":"IF($C$3<>\"\",VLOOKUP($C$3,$AA$63:$AD$66,3,FALSE),\"\")","v":""},null,null,null,{"$f":"IF(F13=\"\",\"\",E13/F13)","v":""},null,{"$f":"IF(E13=0,\"\",E13/(LEFT(D14,3)))","v":""},{"$f":"IF(I13=\"\",\"\",IF(I13>R13,3,IF(I13=R13,2,1)))","v":""},null,{"$f":"IF($C$3<>\"\",VLOOKUP($C$3,$AA$63:$AD$66,3,FALSE),\"\")","v":""},null,null,{"$f":"IF(F13=\"\",\"\",F13)","v":""},{"$f":"IF(O13=\"\",\"\",N13/O13)","v":""},null,{"$f":"IF(N13=0,\"\",N13/(LEFT(M14,3)))","v":""},{"$f":"IF(R13=\"\",\"\",IF(R13>I13,3,IF(R13=I13,2,1)))","v":""},null,null,null,null,null,null,null,"Bande",{"$f":"IF($D13<>\"\",VLOOKUP($D13,$AA$24:$AD$30,3,FALSE),\"\")","v":""},"Bande",{"$f":"IF($M13<>\"\",VLOOKUP($M13,$AA$24:$AD$30,3,FALSE),\"\")","v":""},null,"Libre",{"$f":"IF($D13<>\"\",VLOOKUP($D13,$AA$24:$AD$30,2,FALSE),\"\")","v":""},"Libre",{"$f":"IF($M13<>\"\",VLOOKUP($M13,$AA$24:$AD$30,2,FALSE),\"\")","v":""}]
[null,{"$f":"IF($B13<>\"\",VLOOKUP($B13,Joueurs!$B$3:$F$496,4,FALSE),\"\")","v":""},null,{"$f":"IF($C$3<>\"\",VLOOKUP($C$3,$AA$70:$AD$73,3,FALSE),\"\")","v":""},null,null,null,null,null,null,{"$f":"IF($K13<>\"\",VLOOKUP($K13,Joueurs!$B$3:$F$496,4,FALSE),\"\")","v":""},null,{"$f":"IF($C$3<>\"\",VLOOKUP($C$3,$AA$70:$AD$73,3,FALSE),\"\")","v":""}]
[null,null,{"$f":"IF($C$3<>\"\",VLOOKUP($C$3,$AA$63:$AD$66,4,FALSE),\"\")","v":""},null,null,null,{"$f":"IF(F15=\"\",\"\",E15/F15)","v":""},null,{"$f":"IF(E15=0,\"\",E15/(LEFT(D16,3)))","v":""},{"$f":"IF(I15=\"\",\"\",IF(I15>R15,3,IF(I15=R15,2,1)))","v":""},null,{"$f":"IF($C$3<>\"\",VLOOKUP($C$3,$AA$63:$AD$66,4,FALSE),\"\")","v":""},null,null,{"$f":"IF(F15=\"\",\"\",F15)","v":""},{"$f":"IF(O15=\"\",\"\",N15/O15)","v":""},null,{"$f":"IF(N15=0,\"\",N15/(LEFT(M16,3)))","v":""},{"$f":"IF(R15=\"\",\"\",IF(R15>I15,3,IF(R15=I15,2,1)))","v":""},null,null,null,null,null,null,null,"3 Bandes",{"$f":"IF($D15<>\"\",VLOOKUP($D15,$AA$24:$AD$30,4,FALSE),\"\")","v":""},"3 Bandes",{"$f":"IF($M15<>\"\",VLOOKUP($M15,$AA$24:$AD$30,4,FALSE),\"\")","v":""},null,"Libre",{"$f":"IF($D15<>\"\",VLOOKUP($D15,$AA$24:$AD$30,2,FALSE),\"\")","v":""},"Libre",{"$f":"IF($M15<>\"\",VLOOKUP($M15,$AA$24:$AD$30,2,FALSE),\"\")","v":""}]
[null,{"$f":"IF($B15<>\"\",VLOOKUP($B15,Joueurs!$B$3:$F$496,4,FALSE),\"\")","v":""},null,{"$f":"IF($C$3<>\"\",VLOOKUP($C$3,$AA$70:$AD$73,4,FALSE),\"\")","v":""},null,null,null,null,null,null,{"$f":"IF($K15<>\"\",VLOOKUP($K15,Joueurs!$B$3:$F$496,4,FALSE),\"\")","v":""},null,{"$f":"IF($C$3<>\"\",VLOOKUP($C$3,$AA$70:$AD$73,4,FALSE),\"\")","v":""}]
[null,"RESULTATS",null,null,{"$f":"IF(OR($C$3=\"\"),\"\",SUM(E11:E16))","v":""},{"$f":"IF(OR($C$3=\"\"),\"\",SUM(F11:F16))","v":""},{"$f":"IF(OR($C$3=\"\"),\"\",IF(F17=0,\"\",E17/F17))","v":""},null,{"$f":"IF(OR($C$3=\"\"),\"\",SUM(I11:I16)/3)","v":""},{"$f":"IF(OR(C3=\"\"),\"\",SUM(J11:J16))","v":""},"RESULTATS",null,null,{"$f":"IF(OR($C$3=\"\"),\"\",SUM(N11:N16))","v":""},{"$f":"IF(OR($C$3=\"\"),\"\",SUM(O11:O16))","v":""},{"$f":"IF(OR($C$3=\"\"),\"\",IF(O17=0,\"\",N17/O17))","v":""},null,{"$f":"IF(OR($C$3=\"\"),\"\",SUM(R11:R16)/3)","v":""},{"$f":"IF(OR(L3=\"\"),\"\",SUM(S11:S16))","v":0},null,null,null,null,null,null,null,"TOTAL",{"$f":"IF(OR(D11=\"\",D13=\"\",D15=\"\"),\"\",AB11+AB13+AB15)","v":""},"TOTAL",{"$f":"IF(OR(AD11=\"\",AD13=\"\",AD15=\"\"),\"\",AD11+AD13+AD15)","v":""},null,"TOTAL",{"$f":"IF(OR(D11=\"\",D13=\"\",D15=\"\"),\"\",AG11+AG13+AG15)","v":""},"TOTAL",{"$f":"IF(OR(AI11=\"\",AI13=\"\",AI15=\"\"),\"\",AI11+AI13+AI15)","v":""}]
[null,null,null,{"$f":"IF(OR(D12=\"\",D14=\"\",D16=\"\"),\"\",LEFT(D14,3)+LEFT(D16,3)+LEFT(D12,3))","v":""},null,null,null,null,null,null,null,null,{"$f":"IF(OR(M12=\"\",M14=\"\",M16=\"\"),\"\",LEFT(M14,3)+LEFT(M16,3)+LEFT(M12,3))","v":""}]
[]
[null,null,null,{"$f":"IF(OR(C3=\"\"),\"\",IF(J17=0,\"\",IF(J17<S17,M9,IF(J17=S17,D9,D9))))","v":""},null,null,null,null,null,null,{"$f":"IF(OR(C3=\"\"),\"\",IF(J17=S17,\"EGALITE CONTRE\",\"BAT CONTRE\"))","v":""},null,{"$f":"IF(OR(C3=\"\"),\"\",IF(S17=0,\"\",IF(S17<J17,M9,IF(S17=J17,M9,D9))))","v":""}]
[]
[null,"Contrôle de la division :",null,{"$f":"IF($C$3=\"\",\"\",IF($C$3=1,$AB$17,IF($C$3=2,$AB$17,IF(C3=6,$AG$17,IF($C$3=7,$AG$17)))))","v":""},null,null,{"$f":"IF(J17<S17,S17,IF(J17=S17,J17,J17))","v":""},null,null,null,"à",null,{"$f":"IF(S17<J17,S17,IF(S17=J17,S17,J17))","v":0},null,null,{"$f":"IF($C$3=\"\",\"\",IF($C$3=1,$AD$17,IF($C$3=2,$AD$17,IF(C3=6,$AI$17,IF($C$3=7,$AI$17)))))","v":""},null,null,null,null,null,null,null,null,null,null,null,"Libre","Bande","3 Bandes"]
[null,null,null,{"$f":"IF(OR(C3=\"\"),\"\",IF(D22<=$U$4,\"OK\",\"NON VALIDE\"))","v":""},null,null,null,null,null,null,null,null,null,null,null,{"$f":"IF(OR(C3=\"\"),\"\",IF(P22<=$U$4,\"OK\",\"NON VALIDE\"))","v":""},null,null,null,null,null,null,null,null,null,null,"Cat"]
[null,"Je soussigné, Capitaine de l'équipe mentionnée ci-dessus, déclare sur",null,null,null,null,null,null,null,null,"Je soussigné, Capitaine de l'équipe mentionnée ci-dessus, déclare sur",null,null,null,null,null,null,null,null,null,null,null,null,null,null,null,"N1",800,800,800]
[null,"l'honneur que les joueurs précités répondent aux critères requis par le",null,null,null,null,null,null,null,null,"l'honneur que les joueurs précités répondent aux critères requis par le",null,null,null,null,null,null,null,null,null,null,null,null,null,null,null,"N2",null,null,700]
[null,"règlement des matches par équipes",null,null,null,null,null,null,null,null,"règlement des matches par équipes",null,null,null,null,null,null,null,null,null,null,null,null,null,null,null,"N3",600,600,600]
[null,null,null,null,null,null,null,null,null,null,null,null,null,null,null,null,null,null,null,null,null,null,null,null,null,null,"R1",400,400,400]
[null,"NOM - Prénom",null,null,null,null,null,null,null,null,"NOM - Prénom",null,null,null,null,null,null,null,null,null,null,null,null,null,null,null,"R2",300,300,300]
[null,"Signature :",null,null,null,null,null,null,null,null,"Signature :",null,null,null,null,null,null,null,null,null,null,null,null,null,null,null,"R3",200]
[null,null,null,null,null,null,null,null,null,null,null,null,null,null,null,null,null,null,null,null,null,null,null,null,null,null,"R4",100]
[null,"Les feuilles de résultats doivent à adresser dimanche midi au plus tard",null,null,null,null,null,null,null,null,null,null,null,null,null,null,null,null,null,null,null,null,null,null,null,null,null,"Catégories Possible par Mode de Jeu\nDivision 1"]
[null,"- au responsable format : Christian FONTAINE :",null,"mpe.artois@gmail.com",null,null,null,null,null,null,{"$f":"IF(OR(D9=\"\"),\"\",IF(L5=B37,D37,D38))","v":""},null,{"$f":"IF(OR(D9=\"\"),\"\",IF(K32=D37,F37,K38))","v":""}]
[null,"- au webmaster",null,null,null,null,null,null,null,null,{"$f":"IF(OR(D9=\"\"),\"\",D36)","v":""},null,{"$f":"IF(OR(D9=\"\"),\"\",F36)","v":""}]
[null,"Les résultats doivent être également saisis sur www.ffbsportif.com",null,null,null,null,null,null,null,null,null,null,null,null,null,null,null,null,null,null,null,null,null,null,null,null,{"$f":"'Feuille de Match'!AB34:AB38","v":"Cat"},"Cat","Cat","Cat"]
[null,null,null,null,null,null,null,null,null,null,null,null,null,null,null,null,null,null,null,null,null,null,null,null,null,null,null,"N1","N1","N1"]
[null,"1/2 CD",null,null,null,null,null,null,null,null,null,null,null,null,null,null,null,null,null,null,null,null,null,null,null,null,null,"R2",null,"R2"]
[null,"Artois",null,"FONTAINE CHRISTIAN",null,"mpe.artois@gmail.com",null,null,null,null,null,null,null,null,null,null,null,null,null,null,null,null,null,null,null,null,null,"R3"]
[null,"Maritime",null,"CARON Christian",null,"christian.caron62@orange.fr",null,null,null,null,null,null,null,null,null,null,null,null,null,null,null,null,null,null,null,null,null,"R4"]
[null,"Billy","Artois"]
[null,"Carvin","Artois",null,null,null,null,null,null,null,null,null,null,null,null,null,null,null,null,null,null,null,null,null,null,null,null,"Catégories Possible par Mode de Jeu\nDivision 2"]
[null,"Courrières","Artois"]
[null,"Divion","Artois",null,null,null,null,null,null,null,null,null,null,null,null,null,null,null,null,null,null,null,null,null,null,null,null,"Cat","Cat","Cat"]
[null,"Fouquières","Artois",null,null,null,null,null,null,null,null,null,null,null,null,null,null,null,null,null,null,null,null,null,null,null,null,"R1","R1","R1"]
[null,"Lens","Artois",null,null,null,null,null,null,null,null,null,null,null,null,null,null,null,null,null,null,null,null,null,null,null,null,"R2","R2","R2"]
[null,null,"Artois",null,null,null,null,null,null,null,null,null,null,null,null,null,null,null,null,null,null,null,null,null,null,null,null,"R3"]
[null,null,"Artois",null,null,null,null,null,null,null,null,null,null,null,null,null,null,null,null,null,null,null,null,null,null,null,null,"R4"]
[null,null,"Artois"]
[null,null,"Artois",null,null,null,null,null,null,null,null,null,null,null,null,null,null,null,null,null,null,null,null,null,null,null,null,"Catégories Possible par Mode de Jeu\nDivision 6"]
[null,null,"Artois"]
[null,null,null,null,null,null,null,null,null,null,null,null,null,null,null,null,null,null,null,null,null,null,null,null,null,null,null,"Cat","Cat","Cat"]
[null,null,null,null,null,null,null,null,null,null,null,null,null,null,null,null,null,null,null,null,null,null,null,null,null,null,null,"R2","R2","R2"]
[null,null,null,null,null,null,null,null,null,null,null,null,null,null,null,null,null,null,null,null,null,null,null,null,null,null,null,"R3","R3","R3"]
[null,null,null,null,null,null,null,null,null,null,null,null,null,null,null,null,null,null,null,null,null,null,null,null,null,null,null,"R4","R4","R4"]
[]
[null,null,null,null,null,null,null,null,null,null,null,null,null,null,null,null,null,null,null,null,null,null,null,null,null,null,null,"Catégories Possible par Mode de Jeu\nDivision 7"]
[]
[null,null,null,null,null,null,null,null,null,null,null,null,null,null,null,null,null,null,null,null,null,null,null,null,null,null,null,"Cat","Cat","Cat"]
[null,null,null,null,null,null,null,null,null,null,null,null,null,null,null,null,null,null,null,null,null,null,null,null,null,null,null,"R3","R3","R3"]
[null,null,null,null,null,null,null,null,null,null,null,null,null,null,null,null,null,null,null,null,null,null,null,null,null,null,null,"R4","R4","R4"]
[]
[null,"Vérifier un numéro de licence",null,"Avant d'envoyer votre feuille, merci de bien vérifier les points suivants :",null,null,null,null,null,null,null,null,null,null,null,null,null,null,null,null,null,null,null,null,null,null,"Sélection Mode de Jeu Automatique"]
[null,"avec la lettre (clé)",null,null,null,null,null,null,null,null,null,null,null,null,null,null,null,null,null,null,null,null,null,null,null,null,"Division","Match 1","Match 2","Match 3"]
[null,"ex : 123456-A",null,"- Renseigner les \"Cat\"",null,null,null,null,null,null,null,null,null,null,null,null,null,null,null,null,null,null,null,null,null,null,1,"Libre","Bande","3 Bandes"]
[null,null,null,"- Mettre la date du jour",null,null,null,null,null,null,null,null,null,null,null,null,null,null,null,null,null,null,null,null,null,null,2,"Libre","Bande","3 Bandes"]
[null,null,null,"- Enregistrer le document de manière explicite (D6 - 25-09-10 - Avion-Billy1.xls)",null,null,null,null,null,null,null,null,null,null,null,null,null,null,null,null,null,null,null,null,null,null,6,"Libre","Libre","Libre"]
[null,null,null,"- Le seul format de document autorisé est xls. Pas de pdf, pas d'open office. Le format Office 2007 est toléré.",null,null,null,null,null,null,null,null,null,null,null,null,null,null,null,null,null,null,null,null,null,null,7,"Libre","Libre","Libre"]
[]
[null,{"$f":"IF(B66=\"\",\"\",IF(CHAR(65+MOD(LEFT(B66,6),26))=RIGHT(B66,1),\"OK\",\"Erreur-clé\"))","v":""},null,null,null,null,null,null,null,null,null,null,null,null,null,null,null,null,null,null,null,null,null,null,null,null,"Sélection Distance Automatique"]
[null,null,null,null,null,null,null,null,null,null,null,null,null,null,null,null,null,null,null,null,null,null,null,null,null,null,"Division","Match 1","Match 2","Match 3"]
[null,null,null,null,null,null,null,null,null,null,null,null,null,null,null,null,null,null,null,null,null,null,null,null,null,null,1,"200 Pts GC","80 Pts","25 Pts"]
[null,null,null,null,null,null,null,null,null,null,null,null,null,null,null,null,null,null,null,null,null,null,null,null,null,null,2,"120 Pts","60 Pts","20 Pts"]
[null,null,null,null,null,null,null,null,null,null,null,null,null,null,null,null,null,null,null,null,null,null,null,null,null,null,6,"80 Pts (50 rep.)","60 Pts (50 rep.)","60 Pts (50 rep.)"]
[null,null,null,null,null,null,null,null,null,null,null,null,null,null,null,null,null,null,null,null,null,null,null,null,null,null,7,"60 Pts (50 rep.)","40 Pts (50 rep.)","40 Pts (50 rep.)"]

{"sheet":"Joueurs","index":1,"n_rows":496,"n_cols":6,"rows_kept":496,"cut":false,"hidden":false,"merged":[[0,1,0,5]]}
[null,"LES NOMS DOIVENT TOUJOURS ETRE DANS L'ORDRE ALPHABETIQUE\n(sélectionner les lignes complètes en cliquant sur le chiffre de la ligne)"]
[null,"Nom Prenom","Nom","Prenom","Licence","Clubs"]
[null,{"$f":"C3 & \" \" &D3","v":"ABUCKI PASCAL"},"ABUCKI","PASCAL","016813R","COURRIERES"]
[null,"AMEYE CHRISTIAN","AMEYE","CHRISTIAN","138348C","CARVIN"]
[null,"AMMELOOT UGO","AMMELOOT","UGO","154812Z","DIVION"]
[null,"ANDRIEUX FRANCK","ANDRIEUX","FRANCK","016743Z","OUTREAU"]
[null,"ANNE DENIS","ANNE","DENIS","175293L","ARRAS"]
[null,"BACQUEVILLE MARTIN","BACQUEVILLE","MARTIN","168425W","BILLY"]
[null,"BAHEUX DANNY","BAHEUX","DANNY","151977S","OUTREAU"]
[null,"BAHEUX DAVID","BAHEUX","DAVID","107661V","OUTREAU"]
[null,"BAILLET BERNARD","BAILLET","BERNARD","147240T","CUCQ"]
[null,"BAILLET BRUNO","BAILLET","BRUNO","173488Z","CUCQ"]
[null,"BAILLEUX ALEXIS","BAILLEUX","ALEXIS","155087Y","ARRAS"]
[null,"BAILLEZ AIME","BAILLEZ","AIME","017295F","FOUQUIERES"]
[null,"BARBE JEAN MARC","BARBE","JEAN MARC","134146M","LE TOUQUET"]
[null,"BARBIER LAURENT","BARBIER","LAURENT","175459R","CALAIS"]
[null,"BARMUTA PHILIPPE","BARMUTA","PHILIPPE","134074S","OUTREAU"]
[null,"BARRAS NOLHAN","BARRAS","NOLHAN","171314L","DIVION"]
[null,"BAYART PASCAL","BAYART","PASCAL","016982E","CARVIN"]
[null,"BEAUDUIN ADRIEN","BEAUDUIN","ADRIEN","166004P","BILLY"]
[null,"BEETS MARC","BEETS","MARC","101174I","DIVION"]
[null,"BENHADDOUCHE AHMED","BENHADDOUCHE","AHMED","175684L","FOUQUIERES"]
[null,"BENOIT ANDRE","BENOIT","ANDRE","133066Y","ARRAS"]
[null,"BERGER MIKE","BERGER","MIKE","174465L","BILLY"]
[null,"BERNARD FRANCIS","BERNARD","FRANCIS","117728A","BILLY"]
[null,"BERNARD LAURENT","BERNARD","LAURENT","127738A","BILLY"]
[null,"BERTELOOT SYLVAIN","BERTELOOT","SYLVAIN","173590K","ARRAS"]
[null,"BERTIN LOUIS","BERTIN","LOUIS","173860D","LE TOUQUET"]
[null,"BERTOLOTTI BEATRICE","BERTOLOTTI","BEATRICE","016807L","CARVIN"]
[null,"BETRANCOURT JULIETTE","BETRANCOURT","JULIETTE","174663B","BILLY"]
[null,"BETRANCOURT PASCAL","BETRANCOURT","PASCAL","016746C","BILLY"]
[null,"BEUVELET JEAN MARIE","BEUVELET","JEAN MARIE","146362I","BILLY"]
[null,"BIENQUE DUTHERTE ANGELO","BIENQUE DUTHERTE","ANGELO","175362L","CALAIS"]
[null,"BIGOT JEAN PIERRE","BIGOT","JEAN PIERRE","016942Q","CUCQ"]
[null,"BLONDEEL BRUNO","BLONDEEL","BRUNO","131428Y","OUTREAU"]
[null,"BLONDEEL FIRMIN","BLONDEEL","FIRMIN","133104K","OUTREAU"]
[null,"BLONDEZ PATRICK","BLONDEZ","PATRICK","175677D","ARRAS"]
[null,"BOCCI JEAN LUC","BOCCI","JEAN LUC","159080N","FOUQUIERES"]
[null,"BOCQUET JEAN LUC","BOCQUET","JEAN LUC","016577P","BILLY"]
[null,"BOFFY JEAN PIERRE","BOFFY","JEAN PIERRE","175245J","OUTREAU"]
[null,"BONNET STEPHANE","BONNET","STEPHANE","148887J","OUTREAU"]
[null,"BORKOWSKI PATRICE","BORKOWSKI","PATRICE","171081H","BILLY"]
[null,"BOUBET FRANCINE","BOUBET","FRANCINE","133115V","CUCQ"]
[null,"BOUBET JEAN","BOUBET","JEAN","121412S","CUCQ"]
[null,"BOUCHER KLARA","BOUCHER","KLARA","171315M","DIVION"]
[null,"BOUILLON DAVID","BOUILLON","DAVID","174962B","ARRAS"]
[null,"BOUNIF AMINE","BOUNIF","AMINE","152092S","ARRAS"]
[null,"BRABANT DAVID","BRABANT","DAVID","171205S","ARRAS"]
[null,"BRAZY ALAIN","BRAZY","ALAIN","102980U","CALAIS"]
[null,"BROCAIL PASCAL","BROCAIL","PASCAL","166006R","DIVION"]
[null,"BROUTIER BERTRAND","BROUTIER","BERTRAND","101241X","CUCQ"]
[null,"BROUTIN GAEL","BROUTIN","GAEL","162827L","FOUQUIERES"]
[null,"CABOCHE MARCEL","CABOCHE","MARCEL","017273J","BILLY"]
[null,"CAILLAUX JEREMY","CAILLAUX","JEREMY","161427P","DIVION"]
[null,"CALOIN THOMAS","CALOIN","THOMAS","158561Z","LE TOUQUET"]
[null,"CALONNE JACQUES","CALONNE","JACQUES","174171R","LENS"]
[null,"CANDEILLE JEAN LOUP","CANDEILLE","JEAN LOUP","157468L","LE TOUQUET"]
[null,"CAPLIEZ BERNARD","CAPLIEZ","BERNARD","143595X","LE TOUQUET"]
[null,"CARLI PATRICK","CARLI","PATRICK","017084C","BILLY"]
[null,"CARON CHRISTIAN","CARON","CHRISTIAN","117742O","CUCQ"]
[null,"CARON JOEL","CARON","JOEL","171147E","CUCQ"]
[null,"CARON MICHEL","CARON","MICHEL","129334K","FOUQUIERES"]
[null,"CARTIERE ANDRE","CARTIERE","ANDRE","117749V","CUCQ"]
[null,"CASTELAIN BERNARD","CASTELAIN","BERNARD","174373L","CUCQ"]
[null,"CATRY PASCAL","CATRY","PASCAL","174072J","CUCQ"]
[null,"CATTEAU JEREMY","CATTEAU","JEREMY","173151H","ARRAS"]
[null,{"$f":"C67 & \" \" &D67","v":"CEENAEME NICOLAS"},"CEENAEME","NICOLAS","171316N","DIVION"]
[null,"CHAMBARD DIDIER","CHAMBARD","DIDIER","149408A","CARVIN"]
[null,"CHEVAILLIE JEAN PIERRE","CHEVAILLIE","JEAN PIERRE","126850W","CARVIN"]
[null,"CHUDZINSKI JEAN MARC","CHUDZINSKI","JEAN MARC","165787D","LE TOUQUET"]
[null,"CLEMENT ANNE","CLEMENT","ANNE","117760G","CUCQ"]
[null,"COCHEZ PASCAL","COCHEZ","PASCAL","116585B","LE TOUQUET"]
[null,"COCHEZ QUENTIN","COCHEZ","QUENTIN","175077B","LE TOUQUET"]
[null,"COCQUET EMELINE","COCQUET","EMELINE","174996N","BILLY"]
[null,"COFFRE FREDERIC","COFFRE","FREDERIC","154322R","LE TOUQUET"]
[null,"COIN CLAUDE","COIN","CLAUDE","117751X","CUCQ"]
[null,"COMPAGNON MAELINE","COMPAGNON","MAELINE","171317P","DIVION"]
[null,"CONDETTE FLORIAN","CONDETTE","FLORIAN","164231M","BILLY"]
[null,"COQUET PATRICK","COQUET","PATRICK","144417N","OUTREAU"]
[null,"CORBUSIE HUBERT","CORBUSIE","HUBERT","175117V","CUCQ"]
[null,"CORNOTE ROBERT","CORNOTE","ROBERT","136328K","OUTREAU"]
[null,"COSTEAUX DYLAN","COSTEAUX","DYLAN","154951A","COURRIERES"]
[null,"COTTON LUCILE","COTTON","LUCILE","159088X","ARRAS"]
[null,"COUVREUR MICHEL","COUVREUR","MICHEL","105371T","CALAIS"]
[null,"CREPIN DIDIER","CREPIN","DIDIER","159367A","LENS"]
[null,"CROQUELOIS JEAN JACQUES","CROQUELOIS","JEAN JACQUES","017083B","BILLY"]
[null,"CYFFERS JEAN BERNARD","CYFFERS","JEAN BERNARD","156958G","CUCQ"]
[null,"DACHICOURT JEAN LUC","DACHICOURT","JEAN LUC","161503X","CUCQ"]
[null,"DAMAY ATHALIA","DAMAY","ATHALIA","175361K","CALAIS"]
[null,"DANIAU REMI","DANIAU","REMI","174808J","LE TOUQUET"]
[null,"DELALEU FRANCOIS","DELALEU","FRANCOIS","175536A","ARRAS"]
[null,"DELANSAY STEPHANE","DELANSAY","STEPHANE","157872A","ARRAS"]
[null,"DELATTRE CHRISTIAN","DELATTRE","CHRISTIAN","017030A","DIVION"]
[null,"DELATTRE JEAN MARC","DELATTRE","JEAN MARC","165034K","DIVION"]
[null,"DELATTRE PHILIPPE","DELATTRE","PHILIPPE","112747L","DIVION"]
[null,"DELBEY JULIEN","DELBEY","JULIEN","112719J","BILLY"]
[null,"DELETTRE STEVE","DELETTRE","STEVE","174070G","DIVION"]
[null,"DELOTS PHILIPPE","DELOTS","PHILIPPE","107617D","LENS"]
[null,"DEMARETZ LEA","DEMARETZ","LEA","171322V","DIVION"]
[null,"DEMARLE ELOISE","DEMARLE","ELOISE","171897V","ARRAS"]
[null,"DEMARTHE FABRICE","DEMARTHE","FABRICE","174704W","WIZERNES"]
[null,"DEPLECHIN ROBERT","DEPLECHIN","ROBERT","138329J","LE TOUQUET"]
[null,"DEPLECHIN ROLAND","DEPLECHIN","ROLAND","154167Y","LE TOUQUET"]
[null,"DERIS VINCENT","DERIS","VINCENT","161256D","DIVION"]
[null,"DERLIQUE JEAN CHARLES","DERLIQUE","JEAN CHARLES","157860M","ARRAS"]
[null,"DESAILLY BERNARD","DESAILLY","BERNARD","157452T","CARVIN"]
[null,"DESAULTY PHILIPPE","DESAULTY","PHILIPPE","172683Z","CUCQ"]
[null,"DESBLEUMORTIERS ANDRE","DESBLEUMORTIERS","ANDRE","016530U","BILLY"]
[null,"DESBLEUMORTIERS SYLVIE","DESBLEUMORTIERS","SYLVIE","175002V","BILLY"]
[null,"DESCHARLES DENIS","DESCHARLES","DENIS","142787V","OUTREAU"]
[null,"DESREUMAUX REGIS","DESREUMAUX","REGIS","016981D","CARVIN"]
[null,"DESSAINT ALAIN","DESSAINT","ALAIN","016757N","BILLY"]
[null,"DHIEUX KAYLIA","DHIEUX","KAYLIA","175360J","CALAIS"]
[null,"DI LIBERTO ROSALIA","DI LIBERTO","ROSALIA","166045J","ARRAS"]
[null,"DJEBBAR SAMIR","DJEBBAR","SAMIR","175578W","FOUQUIERES"]
[null,"DUBOIS JEAN LOUIS","DUBOIS","JEAN LOUIS","172567Y","WIZERNES"]
[null,"DUBOIS JEAN MARC","DUBOIS","JEAN MARC","124465D","WIZERNES"]
[null,"DUBURQUE JOEL","DUBURQUE","JOEL","155678Q","CARVIN"]
[null,"DUCROCQ JOEL","DUCROCQ","JOEL","103017F","WIMILLE"]
[null,"DUFAY YANNICK","DUFAY","YANNICK","121385R","WIZERNES"]
[null,"DUFLOS GEORGES","DUFLOS","GEORGES","121432M","OUTREAU"]
[null,"DUHAMEL LUC","DUHAMEL","LUC","016550O","CARVIN"]
[null,"DUHAMEL JEAN LOUIS","DUHAMEL","JEAN LOUIS","126839L","COURRIERES"]
[null,"DUMORTIER FREDDY","DUMORTIER","FREDDY","107643D","LE TOUQUET"]
[null,"DUQUESNOY JEAN CLAUDE","DUQUESNOY","JEAN CLAUDE","016758O","BILLY"]
[null,"ELLART JEAN CLAUDE","ELLART","JEAN CLAUDE","101125L","BILLY"]
[null,"EVRARD FRANCKY","EVRARD","FRANCKY","133051J","FOUQUIERES"]
[null,"FALSE ANAELLE","FALSE","ANAELLE","174745Q","BILLY"]
[null,"FALSE CLAUDE","FALSE","CLAUDE","016903D","BILLY"]
[null,"FALSE FRANCK","FALSE","FRANCK","016907H","BILLY"]
[null,{"$f":"C131 & \" \" &D131","v":"FALSE LOUANN"},"FALSE","LOUANN","174746R","BILLY"]
[null,"FAMCHON FREDERIC","FAMCHON","FREDERIC","138704U","OUTREAU"]
[null,"FAUQUEMBERGUE PAUL","FAUQUEMBERGUE","PAUL","016551P","CARVIN"]
[null,"FAUQUEMBERGUE RENAUD","FAUQUEMBERGUE","RENAUD","133043B","CARVIN"]
[null,"FERMAUT JEAN MARIE","FERMAUT","JEAN MARIE","016918S","DIVION"]
[null,"FLAHAUT PATRICE","FLAHAUT","PATRICE","127702Q","CALAIS"]
[null,"FLAHAUT GHISLAIN","FLAHAUT","GHISLAIN","159163D","CUCQ"]
[null,"FLORENT BERNARD","FLORENT","BERNARD","016852E","CUCQ"]
[null,"FONTAINE CHRISTIAN","FONTAINE","CHRISTIAN","112748M","DIVION"]
[null,"FOULON JEREMY","FOULON","JEREMY","138344Y","COURRIERES"]
[null,"FOULON ROBIN","FOULON","ROBIN","135986G","FOUQUIERES"]
[null,"FOUQUIER PAUL","FOUQUIER","PAUL","136454G","OUTREAU"]
[null,"FOURCROY ALAIN","FOURCROY","ALAIN","141331V","LENS"]
[null,"FOURMAUT SEVERINE","FOURMAUT","SEVERINE","175656F","ARRAS"]
[null,"FOURNIER JEREMY","FOURNIER","JEREMY","118275B","FOUQUIERES"]
[null,"FOURNIER JOEL","FOURNIER","JOEL","130180Y","OUTREAU"]
[null,"FRAMCHOIS ALLAN","FRAMCHOIS","ALLAN","175613J","CALAIS"]
[null,"FRECHIN YOANN","FRECHIN","YOANN","151410B","CALAIS"]
[null,"FRESCURA JEAN PIERRE","FRESCURA","JEAN PIERRE","134275L","LE TOUQUET"]
[null,"GAJDZINSKI BERNARD","GAJDZINSKI","BERNARD","017081Z","AVION"]
[null,"GAMBIER FRANCIS","GAMBIER","FRANCIS","165884J","CUCQ"]
[null,"GELEE ROHAN","GELEE","ROHAN","131083R","CUCQ"]
[null,"GENTILE CAULIN","GENTILE","CAULIN","174618C","BILLY"]
[null,"GENTILE WALTER","GENTILE","WALTER","017171L","BILLY"]
[null,"GERINECZ LOUIS","GERINECZ","LOUIS","126851X","CARVIN"]
[null,"GILLES ANDY","GILLES","ANDY","157863Q","ARRAS"]
[null,"GODART MICHEL","GODART","MICHEL","133054M","DIVION"]
[null,"GOETINCK FREDERIC","GOETINCK","FREDERIC","117692Q","BILLY"]
[null,"GORNICK JEAN PIERRE","GORNICK","JEAN PIERRE","126831D","BILLY"]
[null,"GOUBERT CHRISTOPHE","GOUBERT","CHRISTOPHE","129316S","CARVIN"]
[null,"GRADEL LAURENT","GRADEL","LAURENT","168292B","ARRAS"]
[null,"GREGOIRE PATRICK","GREGOIRE","PATRICK","170821A","LE TOUQUET"]
[null,"GREMAIN GINO","GREMAIN","GINO","017226O","WIZERNES"]
[null,"GRUDA JEAN LUC","GRUDA","JEAN LUC","174031P","ARRAS"]
[null,"GUBIC GERALD","GUBIC","GERALD","163224S","ARRAS"]
[null,"GUEUDRE GERARD","GUEUDRE","GERARD","169942V","CUCQ"]
[null,"GUILBERT THOMAS","GUILBERT","THOMAS","175612H","CALAIS"]
[null,"GUY SEBASTIEN","GUY","SEBASTIEN","175246K","OUTREAU"]
[null,"GUYOT PIERRE","GUYOT","PIERRE","157520S","CUCQ"]
[null,"GWIZDALA GERARD","GWIZDALA","GERARD","138336Q","WIZERNES"]
[null,"HAGNERE DOMINIQUE","HAGNERE","DOMINIQUE","158319L","LE TOUQUET"]
[null,"HANSCOTTE PIERRE HENRI","HANSCOTTE","PIERRE HENRI","175537B","ARRAS"]
[null,"HAY RICHARD","HAY","RICHARD","162536V","AVION"]
[null,"HEBBEN LILIANE","HEBBEN","LILIANE","017164E","BILLY"]
[null,"HEBBEN PIERRE","HEBBEN","PIERRE","016518I","BILLY"]
[null,"HEMBERT ALAIN","HEMBERT","ALAIN","142782Q","CALAIS"]
[null,"HENRY GERARD","HENRY","GERARD","167467E","CUCQ"]
[null,"HENTGES CHARLES","HENTGES","CHARLES","154333D","LE TOUQUET"]
[null,"HENTZ COLETTE","HENTZ","COLETTE","158062G","BILLY"]
[null,"HERMANT PIERRE","HERMANT","PIERRE","166062C","ARRAS"]
[null,"HEROGUEZ BERNARD","HEROGUEZ","BERNARD","147724V","LE TOUQUET"]
[null,"HIMBLOT LORENZO","HIMBLOT","LORENZO","171906E","ARRAS"]
[null,"HOROWICZ GEORGES","HOROWICZ","GEORGES","158210S","CUCQ"]
[null,"HOTTE JEAN LOUIS","HOTTE","JEAN LOUIS","016525P","AVION"]
[null,"HOUZIAUX CELINE","HOUZIAUX","CELINE","174483F","ARRAS"]
[null,"HOUZIAUX ENZO","HOUZIAUX","ENZO","174484G","ARRAS"]
[null,"HOUZIAUX MARGAUX","HOUZIAUX","MARGAUX","174485H","ARRAS"]
[null,"HUBERT HERVE","HUBERT","HERVE","101140A","AVION"]
[null,"HUBERT FABRICE","HUBERT","FABRICE","016976Y","BILLY"]
[null,"HUBERT GABIN","HUBERT","GABIN","174240R","BILLY"]
[null,"HUBERT MAXIME","HUBERT","MAXIME","133038W","BILLY"]
[null,"HUBERT OLIVIER","HUBERT","OLIVIER","016904E","BILLY"]
[null,"HUBERT THOMAS","HUBERT","THOMAS","107597J","BILLY"]
[null,"IDKOWIAK THOMAS","IDKOWIAK","THOMAS","174486J","ARRAS"]
[null,{"$f":"C195 & \" \" &D195","v":"ISAERT PATRICK"},"ISAERT","PATRICK","170606R","CUCQ"]
[null,"JACQUES LIONEL","JACQUES","LIONEL","020725D","BILLY"]
[null,"JOUINOT ISABELLE","JOUINOT","ISABELLE","171953F","ARRAS"]
[null,"JUSTIN CHRISTIAN","JUSTIN","CHRISTIAN","016688W","OUTREAU"]
[null,"KAYNDASZYK PIERRE","KAYNDASZYK","PIERRE","149449V","LENS"]
[null,"KAYNDASZYK RAYMOND","KAYNDASZYK","RAYMOND","147475Z","LENS"]
[null,"KERLEVEO ANDRE","KERLEVEO","ANDRE","171110P","CUCQ"]
[null,"KIMUS DAVID","KIMUS","DAVID","166012Y","DIVION"]
[null,"KRAWCZYK FRANCOIS","KRAWCZYK","FRANCOIS","016555T","CARVIN"]
[null,"LAFFERS CHRISTIAN","LAFFERS","CHRISTIAN","143905V","LE TOUQUET"]
[null,"LAKBAL JOHNNY","LAKBAL","JOHNNY","017027X","DIVION"]
[null,"LAKBAL LUKA","LAKBAL","LUKA","168499B","DIVION"]
[null,"LAKBAL WILLY","LAKBAL","WILLY","016915P","DIVION"]
[null,"LAMARRE REGIS","LAMARRE","REGIS","158668Q","CALAIS"]
[null,"LANDRY PATRICK","LANDRY","PATRICK","170849F","ARRAS"]
[null,"LARTISIEN JEAN PAUL","LARTISIEN","JEAN PAUL","139432U","CARVIN"]
[null,"LASSALLE ROGER","LASSALLE","ROGER","121433N","CALAIS"]
[null,"LEBECQ JEAN PIERRE","LEBECQ","JEAN PIERRE","017236Y","CUCQ"]
[null,"LEBLANC JEAN NOEL","LEBLANC","JEAN NOEL","017175P","DIVION"]
[null,"LECIEUX GUY","LECIEUX","GUY","112750O","DIVION"]
[null,"LECLERCQ CHRISTOPHE","LECLERCQ","CHRISTOPHE","017180U","DIVION"]
[null,"LECLERCQ MICHEL","LECLERCQ","MICHEL","017185Z","DIVION"]
[null,"LEDENT PATRICE","LEDENT","PATRICE","016519J","ARRAS"]
[null,"LEDEZ MICHAEL","LEDEZ","MICHAEL","166039C","OUTREAU"]
[null,"LEDOUX RENE","LEDOUX","RENE","158688M","CUCQ"]
[null,"LEDUC PASCAL","LEDUC","PASCAL","175759S","ARRAS"]
[null,"LEDUC GUY","LEDUC","GUY","149667G","OUTREAU"]
[null,"LEFEBVRE LUCAS","LEFEBVRE","LUCAS","150713T","COURRIERES"]
[null,"LEFEVRE ANTOINE","LEFEVRE","ANTOINE","163530A","ARRAS"]
[null,"LEFEVRE GERARD","LEFEVRE","GERARD","164915F","ARRAS"]
[null,"LEGRAIN ALAIN","LEGRAIN","ALAIN","169473K","CUCQ"]
[null,"LEGRAND FRANCIS","LEGRAND","FRANCIS","016768Y","DIVION"]
[null,"LEMAIRE GILLES","LEMAIRE","GILLES","169167C","ARRAS"]
[null,"LEMAITRE MELANIE","LEMAITRE","MELANIE","168848F","ARRAS"]
[null,"LEMPEREUR ALAIN","LEMPEREUR","ALAIN","135985F","CARVIN"]
[null,"LENNE JEAN","LENNE","JEAN","149953S","LE TOUQUET"]
[null,"LEPORCQ ALAIN","LEPORCQ","ALAIN","127732U","LE TOUQUET"]
[null,"LEPRINCE WYATT","LEPRINCE","WYATT","175359H","CALAIS"]
[null,"LETAILLE PATRICK","LETAILLE","PATRICK","174069F","DIVION"]
[null,"LETALLE DIDIER","LETALLE","DIDIER","123709B","CARVIN"]
[null,"LHERBIER JEAN PIERRE","LHERBIER","JEAN PIERRE","174220V","OUTREAU"]
[null,"LHERMITTE PASCAL","LHERMITTE","PASCAL","016808M","CARVIN"]
[null,"LHOMME SYLVAIN","LHOMME","SYLVAIN","160905X","ARRAS"]
[null,"LIBERT MARC","LIBERT","MARC","144615D","OUTREAU"]
[null,"LIETARD OLIVIER","LIETARD","OLIVIER","173591L","ARRAS"]
[null,"LIGNIER BERTRAND","LIGNIER","BERTRAND","174678S","CUCQ"]
[null,"LIGNIER JULIEN","LIGNIER","JULIEN","175121Z","CUCQ"]
[null,"LIMOSINO JACQUES","LIMOSINO","JACQUES","169417Z","CUCQ"]
[null,"LIMOUSIN ROLAND","LIMOUSIN","ROLAND","114972A","CALAIS"]
[null,"LOBRY PATRICK","LOBRY","PATRICK","158228M","LE TOUQUET"]
[null,"LOUIS PATRICK","LOUIS","PATRICK","107588A","ARRAS"]
[null,"LOUIS HENRI","LOUIS","HENRI","151568Y","CALAIS"]
[null,"LUCZAK DENIS","LUCZAK","DENIS","168855N","DIVION"]
[null,"LUSSEAU MAXIME","LUSSEAU","MAXIME","169849T","BILLY"]
[null,"MACHEZ ALAIN","MACHEZ","ALAIN","016770A","DIVION"]
[null,"MAIRESSE CHRISTIAN","MAIRESSE","CHRISTIAN","134132Y","LE TOUQUET"]
[null,"MALO ALAIN","MALO","ALAIN","174621F","ARRAS"]
[null,"MARCHANDIER PHILIPPE","MARCHANDIER","PHILIPPE","112765D","WIZERNES"]
[null,"MARCHE NORMAN","MARCHE","NORMAN","151853H","DIVION"]
[null,"MARCHIONE JOSEPH","MARCHIONE","JOSEPH","112687D","COURRIERES"]
[null,"MARLARD LEOPOLD","MARLARD","LEOPOLD","107656Q","CALAIS"]
[null,"MAROILLE REAL","MAROILLE","REAL","170183G","ARRAS"]
[null,"MARTEL MICHEL","MARTEL","MICHEL","131084S","CUCQ"]
[null,"MARTEL THIBAUT","MARTEL","THIBAUT","174668G","LE TOUQUET"]
[null,{"$f":"C259 & \" \" &D259","v":"MARTINS CARLOS"},"MARTINS","CARLOS","016579R","BILLY"]
[null,"MASSON ALAIN","MASSON","ALAIN","149526D","CARVIN"]
[null,"MAZURIER JEAN LOUIS","MAZURIER","JEAN LOUIS","013710I","OUTREAU"]
[null,"MELLIN GEORGES","MELLIN","GEORGES","154852S","LE TOUQUET"]
[null,"MENOUS FABRICE","MENOUS","FABRICE","107635V","DIVION"]
[null,"MERLIN CHRISTIAN","MERLIN","CHRISTIAN","016887N","LE TOUQUET"]
[null,"MICHEL PIERRE","MICHEL","PIERRE","123708A","CARVIN"]
[null,"MILAZZO CALOGERO","MILAZZO","CALOGERO","174305M","CARVIN"]
[null,"MINART ARNAUD","MINART","ARNAUD","165785B","LE TOUQUET"]
[null,"MINET LIONEL","MINET","LIONEL","155655Q","DIVION"]
[null,"MOGUEZ ALAIN","MOGUEZ","ALAIN","016714W","BILLY"]
[null,"MONNEYRAC SEBASTIEN","MONNEYRAC","SEBASTIEN","017277N","COURRIERES"]
[null,"MONTADOR CHRISTOPHE","MONTADOR","CHRISTOPHE","124468G","WIMILLE"]
[null,"MONTADOR JESSY","MONTADOR","JESSY","107663X","WIMILLE"]
[null,"MONTADOR LUDOVIC","MONTADOR","LUDOVIC","103019H","WIMILLE"]
[null,"MOREAUX CAUX MAEL","MOREAUX CAUX","MAEL","175392T","CALAIS"]
[null,"MORELLE GEORGES","MORELLE","GEORGES","016558W","CARVIN"]
[null,"MOSSE PATRICK","MOSSE","PATRICK","174166L","LENS"]
[null,"MOURGUES CHRISTIAN","MOURGUES","CHRISTIAN","142790Y","OUTREAU"]
[null,"MOURGUES MARC","MOURGUES","MARC","127740C","OUTREAU"]
[null,"MOUTON AUGUSTIN","MOUTON","AUGUSTIN","017088G","CARVIN"]
[null,"MUSTIN GUY","MUSTIN","GUY","169182T","ARRAS"]
[null,"NEIRYNCK VINCENT","NEIRYNCK","VINCENT","017386S","OUTREAU"]
[null,"NOGA MELODY","NOGA","MELODY","175003W","BILLY"]
[null,"OTTEVAERE ANDRE","OTTEVAERE","ANDRE","114094G","LE TOUQUET"]
[null,"PASBECQ JEAN MARIE","PASBECQ","JEAN MARIE","173522L","CUCQ"]
[null,"PAVY MICHEL","PAVY","MICHEL","140950E","OUTREAU"]
[null,"PENIN OLIVIER","PENIN","OLIVIER","166014A","ARRAS"]
[null,"PERTUE DANIEL","PERTUE","DANIEL","168339C","CUCQ"]
[null,"PETIT FABIEN","PETIT","FABIEN","137141R","BILLY"]
[null,"PETIT NICOLAS","PETIT","NICOLAS","135984E","BILLY"]
[null,"PINGUET DANIEL","PINGUET","DANIEL","161418E","CUCQ"]
[null,"PLASSIER PHILIPPE","PLASSIER","PHILIPPE","101166A","DIVION"]
[null,"PLOCH JEAN LUC","PLOCH","JEAN LUC","159079M","FOUQUIERES"]
[null,"POIDEVIN DANIEL","POIDEVIN","DANIEL","016809N","CARVIN"]
[null,"POIDEVIN DANY","POIDEVIN","DANY","016760Q","CARVIN"]
[null,"PONTLEVOY JEAN LOUIS","PONTLEVOY","JEAN LOUIS","171358J","ARRAS"]
[null,"POSTEL ROGER","POSTEL","ROGER","156959H","CUCQ"]
[null,"PRESSE NOAH","PRESSE","NOAH","168182G","DIVION"]
[null,"PROVOLO GABIN","PROVOLO","GABIN","170522A","DIVION"]
[null,"PRUVOST PATRICK","PRUVOST","PATRICK","164088G","DIVION"]
[null,"QUIQUEMPOIX CELIA","QUIQUEMPOIX","CELIA","171330D","DIVION"]
[null,"RAMBUR FREDDY","RAMBUR","FREDDY","159128Q","OUTREAU"]
[null,"RAMET JACQUES","RAMET","JACQUES","154166X","CUCQ"]
[null,"RANSON VINCENT","RANSON","VINCENT","175358G","CALAIS"]
[null,"RAULT BAUDOUIN","RAULT","BAUDOUIN","145212C","COURRIERES"]
[null,"RAULT BERTRAND","RAULT","BERTRAND","016871X","COURRIERES"]
[null,"RAULT KARINE","RAULT","KARINE","168680Y","COURRIERES"]
[null,"REMY FREDERIC","REMY","FREDERIC","170303M","ARRAS"]
[null,"RETOURNE MICHEL","RETOURNE","MICHEL","021089D","CUCQ"]
[null,"RICHARD SHENDY","RICHARD","SHENDY","173569M","FOUQUIERES"]
[null,"RIVALAIN JEAN LOUIS","RIVALAIN","JEAN LOUIS","138331L","CUCQ"]
[null,"ROBERVAL FRANCIS","ROBERVAL","FRANCIS","157979R","CUCQ"]
[null,"ROHART PHILIPPE","ROHART","PHILIPPE","149361Z","FOUQUIERES"]
[null,"ROLLAND JEAN MICHEL","ROLLAND","JEAN MICHEL","166065F","ARRAS"]
[null,"ROLLAND STEPHANE","ROLLAND","STEPHANE","171827T","FOUQUIERES"]
[null,"ROSSI XAVIER","ROSSI","XAVIER","174622G","ARRAS"]
[null,"SAINT GEORGES CLAUDE","SAINT GEORGES","CLAUDE","017052W","CALAIS"]
[null,"SAISON DIDIER","SAISON","DIDIER","166639E","CUCQ"]
[null,"SAISON BERTRAND","SAISON","BERTRAND","141319J","WIZERNES"]
[null,"SARDA OLIVIER","SARDA","OLIVIER","014137T","BILLY"]
[null,"SATTLER YVES MARIE","SATTLER","YVES MARIE","151652P","LE TOUQUET"]
[null,"SELLIER FABRICE","SELLIER","FABRICE","124485X","OUTREAU"]
[null,"SNIATECKI PASCAL","SNIATECKI","PASCAL","017169J","BILLY"]
[null,{"$f":"C323 & \" \" &D323","v":"STEINMETZ JACQUES"},"STEINMETZ","JACQUES","163290P","BILLY"]
[null,"SURET DANIEL","SURET","DANIEL","133047F","CARVIN"]
[null,"SVIGA GILLES","SVIGA","GILLES","134153T","LE TOUQUET"]
[null,"SZKUDLAREK TIMEO","SZKUDLAREK","TIMEO","175221H","DIVION"]
[null,"SZWAREK GEORGES","SZWAREK","GEORGES","159169K","FOUQUIERES"]
[null,"SZYLAR AURELIEN","SZYLAR","AURELIEN","171895S","ARRAS"]
[null,"SZYNCZEWSKI PHILIPPE","SZYNCZEWSKI","PHILIPPE","158029W","FOUQUIERES"]
[null,"THOREL ALAIN","THOREL","ALAIN","168271D","ARRAS"]
[null,"TILLIETTE MICHEL","TILLIETTE","MICHEL","174068E","DIVION"]
[null,"TIZON ALAIN","TIZON","ALAIN","121424E","CUCQ"]
[null,"TRIPLET EDDIE","TRIPLET","EDDIE","145206W","CUCQ"]
[null,"TRIPLET FREDDY","TRIPLET","FREDDY","145207X","CUCQ"]
[null,"TRIPLET GILBERT","TRIPLET","GILBERT","136009D","CUCQ"]
[null,"TROUILLE GUILLAUME","TROUILLE","GUILLAUME","169462Y","ARRAS"]
[null,"TROVATI LOIC","TROVATI","LOIC","171896T","ARRAS"]
[null,"TURLOTTE OLIVIER","TURLOTTE","OLIVIER","017262Y","DIVION"]
[null,"VADUNTHUN DANIEL","VADUNTHUN","DANIEL","155058R","LE TOUQUET"]
[null,"VADUNTHUN PATRICK","VADUNTHUN","PATRICK","016753J","LE TOUQUET"]
[null,"VAN WYNENDAELE LIDWINE","VAN WYNENDAELE","LIDWINE","169165A","ARRAS"]
[null,"VANDEVYVERE JEAN CLAUDE","VANDEVYVERE","JEAN CLAUDE","151104T","CARVIN"]
[null,"VANHACK DIDIER","VANHACK","DIDIER","139591X","CUCQ"]
[null,"VANPEENE DIDIER","VANPEENE","DIDIER","134139F","OUTREAU"]
[null,"VANTOMME DANIEL","VANTOMME","DANIEL","112741F","WIMILLE"]
[null,"VASSALLE MARCEL","VASSALLE","MARCEL","117746S","CUCQ"]
[null,"VASSEUR NOA","VASSEUR","NOA","175357F","CALAIS"]
[null,"VASSEUR JEAN FRANCOIS","VASSEUR","JEAN FRANCOIS","166477D","WIZERNES"]
[null,"VENDEVILLE DIDIER","VENDEVILLE","DIDIER","175687P","FOUQUIERES"]
[null,"VERBREGUE SAMUEL","VERBREGUE","SAMUEL","175732N","CALAIS"]
[null,"VERCRUYSSE MICHEL","VERCRUYSSE","MICHEL","133118Y","LE TOUQUET"]
[null,"VERDOUCQ LUDOVIC","VERDOUCQ","LUDOVIC","159299B","DIVION"]
[null,"VERHAEGHE TIMEO","VERHAEGHE","TIMEO","166260S","BILLY"]
[null,"VERHELLE THEO","VERHELLE","THEO","175356E","CALAIS"]
[null,"VERMEERSCH PHILIPPE","VERMEERSCH","PHILIPPE","144418O","OUTREAU"]
[null,"VIEBAN JACQUES","VIEBAN","JACQUES","121356O","LENS"]
[null,"VIEILLARD DANIEL","VIEILLARD","DANIEL","124437B","CALAIS"]
[null,"VIGNERON REYNALD","VIGNERON","REYNALD","016794Y","WIMILLE"]
[null,"WATTELET MAURICE","WATTELET","MAURICE","112744I","FOUQUIERES"]
[null,"ZEIDEL CHRISTOPHE","ZEIDEL","CHRISTOPHE","016542G","BILLY"]
[null,"ZEIDEL SANDRINE","ZEIDEL","SANDRINE","174992J","BILLY"]
[null,"ZOONEKYND PIERRE","ZOONEKYND","PIERRE","168158F","OUTREAU"]
[null," "]
[null," "]
[null," "]
[null," "]
[null," "]
[null," "]
[null," "]
[null," "]
[null," "]
[null," "]
[null," "]
[null," "]
[null," "]
[null," "]
[null," "]
[null," "]
[null," "]
[null," "]
[null," "]
[null," "]
[null," "]
[null," "]
[null," "]
[null," "]
[null,{"$f":"C387 & \" \" &D387","v":" "}]
[null," "]
[null," "]
[null," "]
[null," "]
[null," "]
[null," "]
[null," "]
[null," "]
[null," "]
[null," "]
[null," "]
[null," "]
[null," "]
[null," "]
[null," "]
[null," "]
[null," "]
[null," "]
[null," "]
[null," "]
[null," "]
[null," "]
[null," "]
[null," "]
[null," "]
[null," "]
[null," "]
[null," "]
[null," "]
[null," "]
[null," "]
[null," "]
[null," "]
[null," "]
[null," "]
[null," "]
[null," "]
[null," "]
[null," "]
[null," "]
[null," "]
[null," "]
[null," "]
[null," "]
[null," "]
[null," "]
[null," "]
[null," "]
[null," "]
[null," "]
[null," "]
[null," "]
[null," "]
[null," "]
[null," "]
[null," "]
[null," "]
[null," "]
[null," "]
[null," "]
[null," "]
[null," "]
[null," "]
[null,{"$f":"C451 & \" \" &D451","v":" "}]
[null," "]
[null," "]
[null," "]
[null," "]
[null," "]
[null," "]
[null," "]
[null," "]
[null," "]
[null," "]
[null," "]
[null," "]
[null," "]
[null," "]
[null," "]
[null," "]
[null," "]
[null," "]
[null," "]
[null," "]
[null," "]
[null," "]
[null," "]
[null," "]
[null," "]
[null," "]
[null," "]
[null," "]
[null," "]
[null," "]
[null," "]
[null," "]
[null," "]
[null," "]
[null," "]
[null," "]
[null," "]
[null," "]
[null," "]
[null," "]
[null," "]
[null," "]
[null," "]
[null," "]
[null," "]